[Event "Titled Tuesday Blitz January 10 Early 2023"]
[White "Yuan, Qingyu"]
[Black "Crevatin, Leo"]
[WhiteFideId "8609772"]
[BlackFideId "1726307"]
[WhiteElo "2373"]
[BlackElo "2292"]
[Result "1-0"]
[Round "06"]
[TimeControl "180+2"]
[Date "2023.01.10"]
[WhiteClock "0:00:12"]
[BlackClock "0:00:06"]

1. Nf3 {[%clk 0:03:00]}  Nf6 {[%clk 0:02:59]} 2. g3 {[%clk 0:02:58]}  b5 {[%clk 0:02:59]} 3. a4 {[%clk 0:02:57]}  b4 {[%clk 0:02:59]} 4. Bg2 {[%clk 0:02:57]}  Bb7 {[%clk 0:02:59]} 5. O-O {[%clk 0:02:57]}  e6 {[%clk 0:02:58]} 6. d3 {[%clk 0:02:56]}  d6 {[%clk 0:02:57]} 7. e4 {[%clk 0:02:55]}  Nbd7 {[%clk 0:02:56]} 8. Nbd2 {[%clk 0:02:55]}  Be7 {[%clk 0:02:55]} 9. a5 {[%clk 0:02:54]}  c5 {[%clk 0:02:52]} 10. Re1 {[%clk 0:02:51]}  O-O {[%clk 0:02:42]} 11. c3 {[%clk 0:02:44]}  bxc3 {[%clk 0:02:40]} 12. bxc3 {[%clk 0:02:44]}  Ne5 {[%clk 0:02:34]} 13. Nxe5 {[%clk 0:02:37]}  dxe5 {[%clk 0:02:35]} 14. Nc4 {[%clk 0:02:35]}  Qc7 {[%clk 0:02:35]} 15. f4 {[%clk 0:02:14]}  exf4 {[%clk 0:02:34]} 16. Bxf4 {[%clk 0:02:14]}  Qd8 {[%clk 0:02:29]} 17. a6 {[%clk 0:01:59]}  Bc6 {[%clk 0:02:13]} 18. Na5 {[%clk 0:01:45]}  Bd7 {[%clk 0:02:14]} 19. Nb7 {[%clk 0:01:27]}  Qc8 {[%clk 0:02:06]} 20. Qd2 {[%clk 0:01:13]}  Bc6 {[%clk 0:02:05]} 21. Kh1 {[%clk 0:01:06]}  Nd7 {[%clk 0:02:00]} 22. d4 {[%clk 0:01:02]}  cxd4 {[%clk 0:02:00]} 23. cxd4 {[%clk 0:01:03]}  Nb6 {[%clk 0:01:50]} 24. d5 {[%clk 0:00:56]}  Bxb7 {[%clk 0:01:28]} 25. axb7 {[%clk 0:00:55]}  Qxb7 {[%clk 0:01:29]} 26. d6 {[%clk 0:00:52]}  Bd8 {[%clk 0:01:26]} 27. Reb1 {[%clk 0:00:42]}  Qc6 {[%clk 0:01:19]} 28. e5 {[%clk 0:00:38]}  Nd5 {[%clk 0:01:19]} 29. Rc1 {[%clk 0:00:38]}  Qb7 {[%clk 0:01:16]} 30. Rab1 {[%clk 0:00:37]}  Bb6 {[%clk 0:01:16]} 31. Rd1 {[%clk 0:00:30]}  Rac8 {[%clk 0:01:02]} 32. Bxd5 {[%clk 0:00:29]}  exd5 {[%clk 0:01:02]} 33. Qxd5 {[%clk 0:00:30]}  Qxd5+ {[%clk 0:00:59]} 34. Rxd5 {[%clk 0:00:31]}  Rfd8 {[%clk 0:00:59]} 35. Rdd1 {[%clk 0:00:19]}  Kf8 {[%clk 0:00:52]} 36. Kg2 {[%clk 0:00:13]}  h6 {[%clk 0:00:46]} 37. Rbc1 {[%clk 0:00:12]}  Rxc1 {[%clk 0:00:43]} 38. Rxc1 {[%clk 0:00:12]}  Ke8 {[%clk 0:00:43]} 39. h4 {[%clk 0:00:12]}  Kd7 {[%clk 0:00:43]} 40. h5 {[%clk 0:00:10]}  Rc8 {[%clk 0:00:39]} 41. Rf1 {[%clk 0:00:07]}  a5 {[%clk 0:00:31]} 42. Rb1 {[%clk 0:00:07]}  Rc6 {[%clk 0:00:30]} 43. Kf3 {[%clk 0:00:06]}  Ke6 {[%clk 0:00:21]} 44. Ke4 {[%clk 0:00:05]}  Rc4+ {[%clk 0:00:20]} 45. Kd3 {[%clk 0:00:05]}  Rb4 {[%clk 0:00:21]} 46. Rxb4 {[%clk 0:00:04]}  axb4 {[%clk 0:00:22]} 47. Kc4 {[%clk 0:00:05]}  Ba5 {[%clk 0:00:19]} 48. g4 {[%clk 0:00:03]}  Kd7 {[%clk 0:00:10]} 49. Bc1 {[%clk 0:00:02]}  Ke6 {[%clk 0:00:09]} 50. Bb2 {[%clk 0:00:02]}  f6 {[%clk 0:00:03]} 51. exf6 {[%clk 0:00:02]}  gxf6 {[%clk 0:00:04]} 52. Kb5 {[%clk 0:00:02]}  Bd8 {[%clk 0:00:03]} 53. Kxb4 {[%clk 0:00:03]}  Kxd6 {[%clk 0:00:03]} 54. Bc1 {[%clk 0:00:04]}  Ke6 {[%clk 0:00:03]} 55. Bxh6 {[%clk 0:00:04]}  f5 {[%clk 0:00:02]} 56. g5 {[%clk 0:00:04]}  Be7+ {[%clk 0:00:01]} 57. Kc4 {[%clk 0:00:04]}  f4 {[%clk 0:00:01]} 58. Kd3 {[%clk 0:00:04]}  Kf5 {[%clk 0:00:02]} 59. g6 {[%clk 0:00:05]}  Bf6 {[%clk 0:00:01]} 60. g7 {[%clk 0:00:05]}  Bxg7 {[%clk 0:00:01]} 61. Bxg7 {[%clk 0:00:06]}  Kg5 {[%clk 0:00:02]} 62. h6 {[%clk 0:00:07]}  Kg6 {[%clk 0:00:03]} 63. Ke2 {[%clk 0:00:07]}  Kf7 {[%clk 0:00:03]} 64. Kf3 {[%clk 0:00:08]}  Kg6 {[%clk 0:00:03]} 65. Kxf4 {[%clk 0:00:09]}  Kh7 {[%clk 0:00:04]} 66. Kg4 {[%clk 0:00:10]}  Kg8 {[%clk 0:00:05]} 67. Kh5 {[%clk 0:00:11]}  Kh7 {[%clk 0:00:05]} 68. Bd4 {[%clk 0:00:11]}  Kg8 {[%clk 0:00:06]} 69. Kg6 {[%clk 0:00:12]} 1-0


[Site "https://www.chess.com"]

[Event "Titled Tuesday Blitz January 10 Early 2023"]
[White "Aradhya, Garg"]
[Black "Bilan, Danila"]
[WhiteFideId "25006746"]
[BlackFideId "24161918"]
[WhiteElo "2284"]
[BlackElo "2303"]
[Result "1-0"]
[Round "06"]
[TimeControl "180+2"]
[Date "2023.01.10"]
[WhiteClock "0:00:56"]
[BlackClock "0:00:05"]

1. d4 {[%clk 0:03:00]}  d5 {[%clk 0:02:56]} 2. c4 {[%clk 0:03:00]}  c6 {[%clk 0:02:56]} 3. Nf3 {[%clk 0:03:00]}  Nf6 {[%clk 0:02:55]} 4. Nc3 {[%clk 0:02:59]}  e6 {[%clk 0:02:56]} 5. e3 {[%clk 0:02:57]}  Nbd7 {[%clk 0:02:55]} 6. Qc2 {[%clk 0:02:54]}  Bd6 {[%clk 0:02:50]} 7. Be2 {[%clk 0:02:53]}  O-O {[%clk 0:02:49]} 8. O-O {[%clk 0:02:54]}  dxc4 {[%clk 0:02:48]} 9. Bxc4 {[%clk 0:02:54]}  e5 {[%clk 0:02:48]} 10. a3 {[%clk 0:02:52]}  Qe7 {[%clk 0:02:41]} 11. h3 {[%clk 0:02:49]}  e4 {[%clk 0:02:36]} 12. Ng5 {[%clk 0:02:49]}  Nb6 {[%clk 0:02:35]} 13. Ba2 {[%clk 0:02:48]}  Bf5 {[%clk 0:02:29]} 14. f3 {[%clk 0:02:48]}  Bg6 {[%clk 0:01:28]} 15. Ngxe4 {[%clk 0:02:34]}  Nbd5 {[%clk 0:01:12]} 16. Nxf6+ {[%clk 0:02:30]}  Qxf6 {[%clk 0:01:05]} 17. Qf2 {[%clk 0:02:29]}  Nxc3 {[%clk 0:00:41]} 18. bxc3 {[%clk 0:02:28]}  Bd3 {[%clk 0:00:31]} 19. Rd1 {[%clk 0:02:19]}  Ba6 {[%clk 0:00:31]} 20. a4 {[%clk 0:01:44]}  Rae8 {[%clk 0:00:26]} 21. e4 {[%clk 0:01:32]}  Qg6 {[%clk 0:00:21]} 22. e5 {[%clk 0:01:29]}  Bb8 {[%clk 0:00:18]} 23. Bb1 {[%clk 0:01:18]}  Qh5 {[%clk 0:00:15]} 24. h4 {[%clk 0:01:14]}  f6 {[%clk 0:00:11]} 25. e6 {[%clk 0:01:05]}  Rxe6 {[%clk 0:00:05]} 26. Ba2 {[%clk 0:01:04]}  Re8 {[%clk 0:00:06]} 27. Re1 {[%clk 0:01:02]}  Qf7 {[%clk 0:00:05]} 28. Rxe6 {[%clk 0:01:01]}  Rxe6 {[%clk 0:00:05]} 29. Ba3 {[%clk 0:00:58]}  Qe8 {[%clk 0:00:05]} 30. Re1 {[%clk 0:00:56]} 1-0


[Site "https://www.chess.com"]

[Event "Titled Tuesday Blitz January 10 Early 2023"]
[White "Ioannidis, Evgenios"]
[Black "Fayzullaev, Akmal"]
[WhiteFideId "4229274"]
[BlackFideId "14200554"]
[WhiteElo "2467"]
[BlackElo "2391"]
[Result "1-0"]
[Round "06"]
[TimeControl "180+2"]
[Date "2023.01.10"]
[WhiteClock "0:00:11"]
[BlackClock "0:00:01"]

1. d4 {[%clk 0:02:57]}  Nf6 {[%clk 0:02:59]} 2. c4 {[%clk 0:02:57]}  e5 {[%clk 0:02:57]} 3. dxe5 {[%clk 0:02:57]}  Ng4 {[%clk 0:02:57]} 4. Bf4 {[%clk 0:02:58]}  Nc6 {[%clk 0:02:56]} 5. Nf3 {[%clk 0:02:58]}  Bb4+ {[%clk 0:02:56]} 6. Nc3 {[%clk 0:02:59]}  Bxc3+ {[%clk 0:02:56]} 7. bxc3 {[%clk 0:02:59]}  Qe7 {[%clk 0:02:57]} 8. Qd5 {[%clk 0:02:59]}  f6 {[%clk 0:02:57]} 9. exf6 {[%clk 0:03:00]}  Nxf6 {[%clk 0:02:56]} 10. Qd3 {[%clk 0:03:00]}  d6 {[%clk 0:02:50]} 11. g3 {[%clk 0:03:01]}  O-O {[%clk 0:02:45]} 12. Bg2 {[%clk 0:03:01]}  Ne4 {[%clk 0:02:20]} 13. Nd4 {[%clk 0:02:21]}  Nc5 {[%clk 0:02:17]} 14. Qe3 {[%clk 0:02:18]}  Qxe3 {[%clk 0:02:10]} 15. Bxe3 {[%clk 0:02:18]}  Ne5 {[%clk 0:02:09]} 16. Nb3 {[%clk 0:02:12]}  Na4 {[%clk 0:01:57]} 17. Bd4 {[%clk 0:01:56]}  Re8 {[%clk 0:01:35]} 18. O-O {[%clk 0:01:39]}  c6 {[%clk 0:01:17]} 19. c5 {[%clk 0:01:37]}  d5 {[%clk 0:01:10]} 20. Nd2 {[%clk 0:01:20]}  Nd7 {[%clk 0:01:02]} 21. e4 {[%clk 0:01:20]}  Ndxc5 {[%clk 0:00:42]} 22. exd5 {[%clk 0:01:20]}  cxd5 {[%clk 0:00:40]} 23. Nb3 {[%clk 0:01:20]}  Ne4 {[%clk 0:00:32]} 24. f3 {[%clk 0:01:09]}  Nexc3 {[%clk 0:00:31]} 25. Rfe1 {[%clk 0:00:56]}  Bf5 {[%clk 0:00:27]} 26. Kf2 {[%clk 0:00:55]}  Bd3 {[%clk 0:00:18]} 27. Re3 {[%clk 0:00:51]}  Rxe3 {[%clk 0:00:16]} 28. Kxe3 {[%clk 0:00:52]}  Bc4 {[%clk 0:00:16]} 29. Kd2 {[%clk 0:00:49]}  Nxa2 {[%clk 0:00:14]} 30. Na5 {[%clk 0:00:47]}  Rd8 {[%clk 0:00:07]} 31. f4 {[%clk 0:00:34]}  Kf7 {[%clk 0:00:06]} 32. Bf3 {[%clk 0:00:19]}  b6 {[%clk 0:00:05]} 33. Nc6 {[%clk 0:00:17]}  Rd6 {[%clk 0:00:04]} 34. Ne5+ {[%clk 0:00:17]}  Kf8 {[%clk 0:00:03]} 35. Ke3 {[%clk 0:00:17]}  N4c3 {[%clk 0:00:02]} 36. Kd2 {[%clk 0:00:13]}  Na4 {[%clk 0:00:02]} 37. Kc2 {[%clk 0:00:12]}  b5 {[%clk 0:00:01]} 38. Nxc4 {[%clk 0:00:11]} 1-0


[Site "https://www.chess.com"]

[Event "Titled Tuesday Blitz January 10 Early 2023"]
[White "Acor, Corey"]
[Black "Kvaloy, Aksel Bu"]
[WhiteFideId "2024861"]
[BlackFideId "1528815"]
[WhiteElo "2216"]
[BlackElo "2321"]
[Result "1-0"]
[Round "06"]
[TimeControl "180+2"]
[Date "2023.01.10"]
[WhiteClock "0:00:08"]
[BlackClock "0:00:01"]

1. e4 {[%clk 0:03:00]}  e5 {[%clk 0:02:57]} 2. Nc3 {[%clk 0:02:59]}  Nf6 {[%clk 0:02:56]} 3. g3 {[%clk 0:03:00]}  d5 {[%clk 0:02:52]} 4. exd5 {[%clk 0:03:00]}  c6 {[%clk 0:02:53]} 5. dxc6 {[%clk 0:02:58]}  Nxc6 {[%clk 0:02:53]} 6. Bg2 {[%clk 0:02:57]}  Bg4 {[%clk 0:02:48]} 7. f3 {[%clk 0:02:54]}  Bf5 {[%clk 0:02:41]} 8. d3 {[%clk 0:02:44]}  Bc5 {[%clk 0:02:37]} 9. Nh3 {[%clk 0:02:29]}  O-O {[%clk 0:02:16]} 10. Nf2 {[%clk 0:02:26]}  Rc8 {[%clk 0:02:12]} 11. O-O {[%clk 0:02:25]}  Nd4 {[%clk 0:02:08]} 12. Kh1 {[%clk 0:02:14]}  b5 {[%clk 0:02:07]} 13. a3 {[%clk 0:02:07]}  a5 {[%clk 0:02:00]} 14. Nce4 {[%clk 0:02:06]}  Nxe4 {[%clk 0:01:56]} 15. Nxe4 {[%clk 0:02:07]}  Bb6 {[%clk 0:01:51]} 16. c3 {[%clk 0:02:03]}  Nc6 {[%clk 0:01:49]} 17. f4 {[%clk 0:01:47]}  Qd7 {[%clk 0:01:38]} 18. fxe5 {[%clk 0:01:36]}  Nxe5 {[%clk 0:01:39]} 19. d4 {[%clk 0:01:35]}  Nc4 {[%clk 0:01:27]} 20. Qf3 {[%clk 0:01:01]}  Be6 {[%clk 0:01:23]} 21. Ng5 {[%clk 0:00:53]}  a4 {[%clk 0:01:08]} 22. Nxe6 {[%clk 0:00:52]}  fxe6 {[%clk 0:01:05]} 23. Qe2 {[%clk 0:00:45]}  Rxf1+ {[%clk 0:01:03]} 24. Bxf1 {[%clk 0:00:45]}  Rf8 {[%clk 0:00:59]} 25. Bh3 {[%clk 0:00:40]}  Qd5+ {[%clk 0:00:54]} 26. Bg2 {[%clk 0:00:40]}  Qf5 {[%clk 0:00:54]} 27. Bf4 {[%clk 0:00:40]}  g5 {[%clk 0:00:48]} 28. Be3 {[%clk 0:00:29]}  Qg6 {[%clk 0:00:30]} 29. Re1 {[%clk 0:00:24]}  Kg7 {[%clk 0:00:18]} 30. Bc1 {[%clk 0:00:22]}  e5 {[%clk 0:00:11]} 31. dxe5 {[%clk 0:00:17]}  Rf2 {[%clk 0:00:11]} 32. Qd1 {[%clk 0:00:13]}  Qe6 {[%clk 0:00:07]} 33. Qd5 {[%clk 0:00:10]}  Qxd5 {[%clk 0:00:06]} 34. Bxd5 {[%clk 0:00:11]}  Nxb2 {[%clk 0:00:03]} 35. Bxg5 {[%clk 0:00:10]}  Kf8 {[%clk 0:00:01]} 36. e6 {[%clk 0:00:09]}  Ke8 {[%clk 0:00:01]} 37. Bc6+ {[%clk 0:00:08]} 1-0


[Site "https://www.chess.com"]

[Event "Titled Tuesday Blitz January 10 Early 2023"]
[White "Boyer, Mahel"]
[Black "Bagwe Gaurang"]
[WhiteFideId "45102422"]
[BlackFideId "45039895"]
[WhiteElo "2489"]
[BlackElo "2067"]
[Result "1/2-1/2"]
[Round "06"]
[TimeControl "180+2"]
[Date "2023.01.10"]
[WhiteClock "0:00:07"]
[BlackClock "0:00:14"]

1. d4 {[%clk 0:02:56]}  d5 {[%clk 0:02:59]} 2. Bf4 {[%clk 0:02:57]}  e6 {[%clk 0:02:58]} 3. e3 {[%clk 0:02:57]}  c5 {[%clk 0:02:58]} 4. Nd2 {[%clk 0:02:55]}  Bd6 {[%clk 0:02:57]} 5. Bg3 {[%clk 0:02:51]}  Qc7 {[%clk 0:02:56]} 6. Ngf3 {[%clk 0:02:44]}  Nd7 {[%clk 0:02:56]} 7. e4 {[%clk 0:02:37]}  cxd4 {[%clk 0:02:50]} 8. exd5 {[%clk 0:02:36]}  exd5 {[%clk 0:02:46]} 9. Bd3 {[%clk 0:02:33]}  Ne7 {[%clk 0:02:44]} 10. O-O {[%clk 0:02:29]}  Bxg3 {[%clk 0:02:43]} 11. hxg3 {[%clk 0:02:27]}  Nf6 {[%clk 0:02:40]} 12. Nxd4 {[%clk 0:02:25]}  Bg4 {[%clk 0:02:38]} 13. f3 {[%clk 0:02:21]}  Bd7 {[%clk 0:02:37]} 14. Qe1 {[%clk 0:02:18]}  Qd6 {[%clk 0:02:20]} 15. N2b3 {[%clk 0:02:08]}  O-O-O {[%clk 0:02:19]} 16. a4 {[%clk 0:02:06]}  Rhe8 {[%clk 0:02:16]} 17. Qf2 {[%clk 0:01:57]}  Kb8 {[%clk 0:02:14]} 18. Nb5 {[%clk 0:01:55]}  Qb6 {[%clk 0:02:14]} 19. Qxb6 {[%clk 0:01:53]}  axb6 {[%clk 0:02:15]} 20. N3d4 {[%clk 0:01:44]}  Nc6 {[%clk 0:02:10]} 21. Nf5 {[%clk 0:01:41]}  Nb4 {[%clk 0:02:02]} 22. Nfd6 {[%clk 0:01:26]}  Bxb5 {[%clk 0:01:44]} 23. Nxb5 {[%clk 0:01:24]}  Nxd3 {[%clk 0:01:42]} 24. cxd3 {[%clk 0:01:25]}  Re2 {[%clk 0:01:39]} 25. Rf2 {[%clk 0:01:25]}  Rde8 {[%clk 0:01:36]} 26. g4 {[%clk 0:01:24]}  Nd7 {[%clk 0:01:34]} 27. Nd4 {[%clk 0:01:22]}  Re1+ {[%clk 0:01:29]} 28. Rf1 {[%clk 0:01:04]}  Rxa1 {[%clk 0:01:24]} 29. Rxa1 {[%clk 0:01:05]}  Nc5 {[%clk 0:01:24]} 30. Ra3 {[%clk 0:00:52]}  Re3 {[%clk 0:01:19]} 31. Nf5 {[%clk 0:00:44]}  Rxd3 {[%clk 0:01:18]} 32. Nxg7 {[%clk 0:00:25]}  Rxa3 {[%clk 0:01:17]} 33. bxa3 {[%clk 0:00:26]}  Nxa4 {[%clk 0:01:07]} 34. Ne8 {[%clk 0:00:25]}  Nc3 {[%clk 0:01:04]} 35. Nf6 {[%clk 0:00:20]}  Kc7 {[%clk 0:00:57]} 36. Nxh7 {[%clk 0:00:20]}  Nb5 {[%clk 0:00:56]} 37. Ng5 {[%clk 0:00:16]}  Nxa3 {[%clk 0:00:38]} 38. Nxf7 {[%clk 0:00:16]}  b5 {[%clk 0:00:39]} 39. Ne5 {[%clk 0:00:13]}  b4 {[%clk 0:00:37]} 40. g5 {[%clk 0:00:12]}  b3 {[%clk 0:00:37]} 41. Nd3 {[%clk 0:00:09]}  Kd6 {[%clk 0:00:34]} 42. g6 {[%clk 0:00:09]}  Ke6 {[%clk 0:00:34]} 43. Nc5+ {[%clk 0:00:08]}  Kf6 {[%clk 0:00:33]} 44. Nxb3 {[%clk 0:00:09]}  Kxg6 {[%clk 0:00:34]} 45. Kf2 {[%clk 0:00:08]}  Nc4 {[%clk 0:00:33]} 46. g4 {[%clk 0:00:05]}  Kg5 {[%clk 0:00:33]} 47. Kg3 {[%clk 0:00:06]}  b5 {[%clk 0:00:33]} 48. f4+ {[%clk 0:00:07]}  Kg6 {[%clk 0:00:32]} 49. Kf3 {[%clk 0:00:05]}  b4 {[%clk 0:00:32]} 50. Ke2 {[%clk 0:00:05]}  Nd6 {[%clk 0:00:19]} 51. Ke3 {[%clk 0:00:06]}  Ne4 {[%clk 0:00:19]} 52. Nd4 {[%clk 0:00:02]}  Kf6 {[%clk 0:00:18]} 53. Kf3 {[%clk 0:00:01]}  Nd2+ {[%clk 0:00:17]} 54. Ke3 {[%clk 0:00:01]}  Nc4+ {[%clk 0:00:16]} 55. Kf3 {[%clk 0:00:02]}  Nd2+ {[%clk 0:00:16]} 56. Ke3 {[%clk 0:00:02]}  Nc4+ {[%clk 0:00:16]} 57. Ke2 {[%clk 0:00:03]}  Nd6 {[%clk 0:00:16]} 58. Kd3 {[%clk 0:00:03]}  Ne4 {[%clk 0:00:16]} 59. Nf3 {[%clk 0:00:03]}  Nf2+ {[%clk 0:00:16]} 60. Kd4 {[%clk 0:00:03]}  b3 {[%clk 0:00:15]} 61. Nd2 {[%clk 0:00:03]}  Nxg4 {[%clk 0:00:14]} 62. Kxd5 {[%clk 0:00:02]}  b2 {[%clk 0:00:14]} 63. Ke4 {[%clk 0:00:02]}  Nf2+ {[%clk 0:00:13]} 64. Ke3 {[%clk 0:00:02]}  Ng4+ {[%clk 0:00:13]} 65. Ke4 {[%clk 0:00:02]}  Ke6 {[%clk 0:00:13]} 66. Nb1 {[%clk 0:00:02]}  Nf6+ {[%clk 0:00:12]} 67. Kd4 {[%clk 0:00:02]}  Nd5 {[%clk 0:00:12]} 68. f5+ {[%clk 0:00:02]}  Kxf5 {[%clk 0:00:12]} 69. Kxd5 {[%clk 0:00:03]}  Kf6 {[%clk 0:00:13]} 70. Kd4 {[%clk 0:00:04]}  Kf5 {[%clk 0:00:14]} 71. Kd3 {[%clk 0:00:05]}  Ke6 {[%clk 0:00:10]} 72. Ke3 {[%clk 0:00:05]}  Kd6 {[%clk 0:00:11]} 73. Kf4 {[%clk 0:00:05]}  Kc6 {[%clk 0:00:11]} 74. Ke3 {[%clk 0:00:05]}  Kc5 {[%clk 0:00:12]} 75. Ke2 {[%clk 0:00:06]}  Kc4 {[%clk 0:00:13]} 76. Kd1 {[%clk 0:00:07]}  Kb3 {[%clk 0:00:14]} 77. Kd2 {[%clk 0:00:07]}  Ka2 {[%clk 0:00:14]} 78. Kc2 {[%clk 0:00:08]}  Ka1 {[%clk 0:00:14]} 79. Nd2 {[%clk 0:00:08]}  b1=Q+ {[%clk 0:00:14]} 80. Nxb1 {[%clk 0:00:07]} 1/2-1/2


[Site "https://www.chess.com"]

[Event "Titled Tuesday Blitz January 10 Early 2023"]
[White "Andreev, Eduard"]
[Black "Wagner, Dennis"]
[WhiteFideId "14103400"]
[BlackFideId "24650684"]
[WhiteElo "2413"]
[BlackElo "2595"]
[Result "1/2-1/2"]
[Round "06"]
[TimeControl "180+2"]
[Date "2023.01.10"]
[WhiteClock "0:00:11"]
[BlackClock "0:00:08"]

1. e4 {[%clk 0:03:00]}  c5 {[%clk 0:02:59]} 2. Nf3 {[%clk 0:03:01]}  d6 {[%clk 0:02:59]} 3. d4 {[%clk 0:03:01]}  cxd4 {[%clk 0:03:00]} 4. Nxd4 {[%clk 0:03:02]}  Nf6 {[%clk 0:03:00]} 5. Nc3 {[%clk 0:03:02]}  a6 {[%clk 0:03:01]} 6. f3 {[%clk 0:03:02]}  e5 {[%clk 0:03:01]} 7. Nb3 {[%clk 0:03:02]}  Be6 {[%clk 0:03:00]} 8. Be3 {[%clk 0:03:02]}  h5 {[%clk 0:02:53]} 9. Qd2 {[%clk 0:03:02]}  Nbd7 {[%clk 0:02:53]} 10. O-O-O {[%clk 0:03:03]}  Rc8 {[%clk 0:02:52]} 11. Kb1 {[%clk 0:03:03]}  Be7 {[%clk 0:02:51]} 12. Bd3 {[%clk 0:03:04]}  b5 {[%clk 0:02:49]} 13. h3 {[%clk 0:03:04]}  h4 {[%clk 0:02:49]} 14. f4 {[%clk 0:01:26]}  Qc7 {[%clk 0:02:48]} 15. Rhe1 {[%clk 0:01:25]}  Nb6 {[%clk 0:02:44]} 16. Bxb6 {[%clk 0:01:19]}  Qxb6 {[%clk 0:02:44]} 17. Nd5 {[%clk 0:01:19]}  Nxd5 {[%clk 0:01:25]} 18. exd5 {[%clk 0:01:20]}  Bxd5 {[%clk 0:01:25]} 19. fxe5 {[%clk 0:01:20]}  dxe5 {[%clk 0:01:25]} 20. Bxb5+ {[%clk 0:00:55]}  axb5 {[%clk 0:00:37]} 21. Qxd5 {[%clk 0:00:54]}  O-O {[%clk 0:00:38]} 22. Qxe5 {[%clk 0:00:33]}  Bf6 {[%clk 0:00:38]} 23. Qf4 {[%clk 0:00:30]}  b4 {[%clk 0:00:37]} 24. g3 {[%clk 0:00:29]}  Qc6 {[%clk 0:00:33]} 25. Re2 {[%clk 0:00:25]}  Rfd8 {[%clk 0:00:25]} 26. Red2 {[%clk 0:00:12]}  Rxd2 {[%clk 0:00:21]} 27. Rxd2 {[%clk 0:00:13]}  Qh1+ {[%clk 0:00:20]} 28. Nc1 {[%clk 0:00:13]}  Qxh3 {[%clk 0:00:15]} 29. gxh4 {[%clk 0:00:13]}  Qxh4 {[%clk 0:00:15]} 30. Qxh4 {[%clk 0:00:13]}  Bxh4 {[%clk 0:00:16]} 31. Rd4 {[%clk 0:00:13]}  Be7 {[%clk 0:00:17]} 32. Nd3 {[%clk 0:00:13]}  Rb8 {[%clk 0:00:15]} 33. Rd7 {[%clk 0:00:13]}  Bf8 {[%clk 0:00:15]} 34. Ne5 {[%clk 0:00:13]}  f6 {[%clk 0:00:14]} 35. Nc6 {[%clk 0:00:13]}  Rc8 {[%clk 0:00:12]} 36. Nd4 {[%clk 0:00:13]}  Re8 {[%clk 0:00:09]} 37. b3 {[%clk 0:00:13]}  g6 {[%clk 0:00:08]} 38. Kb2 {[%clk 0:00:13]}  f5 {[%clk 0:00:08]} 39. c3 {[%clk 0:00:12]}  Bg7 {[%clk 0:00:08]} 40. cxb4 {[%clk 0:00:10]}  g5 {[%clk 0:00:08]} 41. Kc3 {[%clk 0:00:10]}  g4 {[%clk 0:00:07]} 42. Kd3 {[%clk 0:00:10]}  f4 {[%clk 0:00:07]} 43. Nf5 {[%clk 0:00:09]}  Bf8 {[%clk 0:00:07]} 44. Rd4 {[%clk 0:00:08]}  g3 {[%clk 0:00:03]} 45. Rxf4 {[%clk 0:00:08]}  Rd8+ {[%clk 0:00:04]} 46. Ke3 {[%clk 0:00:08]}  Re8+ {[%clk 0:00:04]} 47. Kf3 {[%clk 0:00:08]}  Ra8 {[%clk 0:00:04]} 48. a4 {[%clk 0:00:07]}  Rb8 {[%clk 0:00:04]} 49. b5 {[%clk 0:00:07]}  Rc8 {[%clk 0:00:04]} 50. Rg4+ {[%clk 0:00:07]}  Kf7 {[%clk 0:00:04]} 51. Rc4 {[%clk 0:00:08]}  Rd8 {[%clk 0:00:05]} 52. Nxg3 {[%clk 0:00:08]}  Rd3+ {[%clk 0:00:05]} 53. Kf4 {[%clk 0:00:08]}  Rxb3 {[%clk 0:00:06]} 54. Ne4 {[%clk 0:00:09]}  Ke6 {[%clk 0:00:06]} 55. Nc5+ {[%clk 0:00:07]}  Kd5 {[%clk 0:00:06]} 56. Nxb3 {[%clk 0:00:06]}  Kxc4 {[%clk 0:00:07]} 57. b6 {[%clk 0:00:06]}  Kxb3 {[%clk 0:00:06]} 58. b7 {[%clk 0:00:07]}  Bd6+ {[%clk 0:00:06]} 59. Kf5 {[%clk 0:00:08]}  Kxa4 {[%clk 0:00:06]} 60. Ke6 {[%clk 0:00:09]}  Bb8 {[%clk 0:00:06]} 61. Kd7 {[%clk 0:00:09]}  Ka5 {[%clk 0:00:07]} 62. Kc8 {[%clk 0:00:10]}  Bd6 {[%clk 0:00:07]} 63. b8=Q {[%clk 0:00:11]}  Bxb8 {[%clk 0:00:08]} 1/2-1/2


[Site "https://www.chess.com"]